Cogmind - Beta 15 @@@ ROGUE MODE // 2025.07.01 @ 07:21:47 Player: Fleshy Vegetable Bird Result: Destroyed by SJ-YMD(R) with Subdweller Shrapnel Launcher Performance ------------- Evolutions (0) 0 Regions Visited (2) 400 Robots Destroyed (44) 220 Value Destroyed (624) 624 Prototype IDs (14) 280 Alien Tech Used (0) 0 Bonus (0) 0 TOTAL SCORE: 1524 Bonus ------- None Cogmind --------- Core Integrity 0/250 Matter 278/300 Energy 171/200 System Corruption 3% Temperature Cool (0) Movement Rolling (155) Ox5 Location -10/Subcaves Parts ------- > --- POWER (1) -------- Subdweller Power Source > --- PROPULSION (2) --- Wheel Subdweller Monowheel > --- UTILITY (2) ------ High-capacity Storage Unit Field Recycling Unit > --- WEAPON (2) ------- Barrage Gun Makeshift Axe > --- INVENTORY (20) --- Meta Core Improved Treads Improved Treads Improved Treads Improved Treads Subdweller Monowheel Subdweller Monowheel Subdweller Monowheel High-capacity Storage Unit Large Matter Pod (0) Machine Analyzer Subdweller Optics Subdweller Optics Seismic Detector Seismic Detector Shotgun Subdweller Machine Gun Rocket Launcher Subdweller Shrapnel Launcher Multitool Peak State ------------ > --- POWER ------------ Subdweller Power Source > --- PROPULSION ------- Improved Treads Wheel > --- UTILITY ---------- High-capacity Storage Unit Field Recycling Unit > --- WEAPON ----------- Barrage Gun Makeshift Axe > --- INVENTORY -------- Meta Core Improved Treads Improved Treads Improved Treads Subdweller Monowheel Subdweller Monowheel Subdweller Monowheel Subdweller Monowheel High-capacity Storage Unit Large Matter Pod Machine Analyzer Subdweller Optics Subdweller Optics Seismic Detector Seismic Detector Shotgun Subdweller Machine Gun Rocket Launcher Subdweller Shrapnel Launcher Multitool [Rating: 19] Favorites ----------- Power Ion Engine Engine Ion Engine Propulsion Wheel Treads Improved Treads Wheel Wheel Utility High-capacity Storage Unit Device Field Recycling Unit Storage High-capacity Storage Unit Weapon Assault Rifle Ballistic Gun Assault Rifle Launcher Rocket Launcher Slashing Weapon Makeshift Axe Build | -11 -10 -10 ------- Run | Yrd Mat Sub Slots Evolved . | . . . Power . | . . . Propulsion . | . . . Utility . | . . . Weapon . | . . . Parts Attached 29 | 8 9 12 Power 4 | 1 1 2 Engine 4 | 1 1 2 Core . | . . . Reactor . | . . . Propulsion 11 | 4 1 6 Treads 1 | . . 1 Leg . | . . . Wheel 10 | 4 1 5 Hover . | . . . Flight . | . . . Utility 5 | 1 4 . Device 2 | . 2 . Storage 3 | 1 2 . Processor . | . . . Hackware . | . . . Protection . | . . . Artifact . | . . . Weapon 9 | 2 3 4 Energy Gun . | . . . Energy Cannon . | . . . Ballistic Gun 6 | 2 2 2 Ballistic Cannon . | . . . Launcher 2 | . 1 1 Special Weapon . | . . . Impact Weapon . | . . . Slashing Weapon 1 | . . 1 Piercing Weapon . | . . . Special Melee Weapon . | . . . Unidentified Prototypes . | . . . Parts Lost 3 | . 1 2 Power 2 | . 1 1 Propulsion 1 | . . 1 Utility . | . . . Weapon . | . . . Highest Loss Streak 2 | . 1 2 To Critical Strikes . | . . . Average Backups 15 | 2 11 19 Power . | . . . Propulsion 4 | . 1 6 Utility 5 | . 3 7 Weapon 5 | . 5 5 Tool/Special . | . . . Unused Backups 23 | 2 3 18 Power . | . . . Propulsion 7 | 2 . 5 Utility 8 | . 2 6 Weapon 6 | . 1 5 Tool/Special 2 | . . 2 Average Slot Usage (%) 99 | . 99 99 Engine 13 | . 14 13 Treads 6 | . . 11 Wheel 21 | . 27 16 Device 9 | . 13 5 Storage 18 | . 14 22 Ballistic Gun 22 | . 27 18 Launcher 2 | . . 4 Slashing Weapon 3 | . . 5 Peak Build Rating 19 | 6 11 19 Average Rating 12 | 5 10 15 On Entrance 5 | . 6 11 Naked Turns . | . . . Heaviest Build 72 | 13 59 72 Greatest Support 32 | 32 20 20 Greatest Overweight (x) 7 | 2 3 7 Average Overweight (x) 3 | . 1 5 Largest Inventory Capacity 20 | 8 20 20 Average Capacity 18 | 7 17 20 Most Carried 20 | 5 16 20 Average Carried 15 | 2 11 19 Final Capacity 20 | 8 20 20 Final Carried 20 | 2 15 20 Class Distribution -------------------- 100% | Mutant Dominant Class ---------------- Mutant | -10/Materials Mutant | -10/Subcaves Resources | -11 -10 -10 ----------- Run | Yrd Mat Sub Matter Collected 1262 | 376 457 429 Remotely . | . . . Salvage Created 1413 | 246 907 260 Parts 96 | 16 51 29 Haulers Intercepted 2 | . 2 . Recyclers Shooed 8 | 1 7 . Parts Field Recycled 54 | . 41 13 Retrieved Matter 354 | . 299 55 Parts Self-Destructed 16 | . . 16 Prevented . | . . . Kills | -11 -10 -10 ------- Run | Yrd Mat Sub Combat Hostiles Destroyed 20 | . 12 8 Guns 15 | . 12 3 AOE 5 | . . 5 Classes Destroyed 12 | 3 5 4 Worker 4 | 2 2 . Builder 1 | . 1 . Tunneler 6 | 5 1 . Hauler 2 | . 2 . Recycler 7 | 1 6 . Turret 2 | . . 2 Watcher 2 | . 2 . Swarmer 12 | . 9 3 Grunt 3 | . 3 . Artisan 2 | . . 2 Cobbler 1 | . . 1 Subdweller 5 | . . 5 Best Kill Streak 6 | 2 6 4 Combat Bots Only 3 | . 3 2 Max Kills in Single Turn 3 | 1 3 2 Gunslinging . | . . . Exploded 2 | . . 2 Melee . | . . . Uniques/NPCs Destroyed . | . . . Combat | -11 -10 -10 -------- Run | Yrd Mat Sub Hostile Shots Fired 99 | . 44 55 Missed 35 | . 15 20 Hits 64 | . 29 35 Projectile 64 | . 29 35 AOE 3 | . . 3 Critical Strikes 1 | . . 1 Damage Taken 941 | . 274 667 Core 261 | . 42 219 Absorbed by Shields . | . . . Core Remaining (%) 100 | 100 . . Volleys Fired 122 | 24 69 29 Largest 2 | 2 2 2 Hottest 61 | 40 43 61 Shots Fired 236 | 48 132 56 Gun 221 | 48 131 42 Cannon . | . . . Launcher 15 | . 1 14 Special . | . . . Kinetic 221 | 48 131 42 Thermal . | . . . Explosive 15 | . 1 14 Electromagnetic . | . . . Robot Hit Streak 12 | 10 12 10 Robot Miss Streak 6 | 5 6 5 Penetration Max . | . . . Secondary Targets 1 | . 1 . Max Gunslinging Chain 1 | . 1 . Shots Hit Robots 145 | 30 77 38 Core Hits 72 | 13 39 20 Critical Kills . | . . . Critical Parts Destroyed . | . . . Critical Strikes . | . . . Melee Attacks 27 | . . 27 Impact . | . . . Slashing 27 | . . 27 Piercing . | . . . Sneak Attacks 3 | . . 3 Combat Hostiles . | . . . Follow-up Attacks . | . . . Damage Inflicted 2066 | 310 1000 756 Guns 1475 | 310 1000 165 Cannons . | . . . Explosions 366 | . . 366 Melee 225 | . . 225 Ramming . | . . . Kinetic 1475 | 310 1000 165 Thermal . | . . . Explosive 366 | . . 366 Electromagnetic . | . . . Impact . | . . . Slashing 225 | . . 225 Piercing . | . . . Highest Corruption 3 | . 3 3 Average Corruption 2 | . 2 3 Corruption Purged . | . . . Corruption Blocked . | . . . Effects 44 | . 14 30 Message Errors 13 | . 6 7 Matter Fused 7 | . 1 6 Heat Flow Errors 6 | . 2 4 Energy Discharges 3 | . 1 2 Data Loss (minor) 4 | . 2 2 Data Loss (major) 4 | . 1 3 Misfires 4 | . . 4 Alerts 2 | . . 2 Weapon Failures 1 | . 1 . Overload Shots . | . . . Overflow Damage 40 | . . 40 Projectiles . | . . . Explosions . | . . . Melee 40 | . . 40 Knockbacks . | . . . Impact . | . . . Kinetic . | . . . Secondary . | . . . Self-Inflicted Damage . | . . . Shots . | . . . Rammed . | . . . Targets Rammed . | . . . Kicked . | . . . Crushed . | . . . Highest Temperature 276 | . 276 212 Average Temperature 95 | . 95 95 Received Heat Transfer 153 | . 45 108 Siege Activations . | . . . Martial Activations . | . . . Shielding Activations . | . . . Robots Disrupted . | . . . Combat Hostiles . | . . . Robots Corrupted . | . . . Combat Hostiles . | . . . Parts Fried . | . . . Impact Corruptions . | . . . Robots Melted . | . . . Combat Hostiles . | . . . Parts Melted . | . . . Heat Transferred . | . . . Parts Sabotaged . | . . . Parts Stolen . | . . . Parts Stripped . | . . . Power Chain Reactions . | . . . Alert | -11 -10 -10 ------- Run | Yrd Mat Sub Maximum Alert Level . | . . . Low Security (%) 100 | 100 100 . Level 1 . | . . . Level 2 . | . . . Level 3 . | . . . Level 4 . | . . . Level 5 . | . . . High Security . | . . . Max Security . | . . . Peak Influence 184 | 10 184 . Initial 3 | . 3 . Average 34 | 1 38 . Influence Increases 738 | 40 463 235 Destroy 0b10 Robot/C 340 | . 240 100 Destroy 0b10 Robot/NC 110 | 40 70 . Destroy Leader 48 | . 48 . Successful Hack 10 | . 10 . Destroy Structure 5 | . 5 . Lose Combat Pursuer 225 | . 90 135 Influence Decreases 712 | 35 466 211 Entered New Map 4 | . 2 2 Time Decay 570 | 35 326 209 Lost Part 10 | . 10 . Purge Threat 128 | . 128 . Squads Dispatched . | . . . Investigation . | . . . Extermination . | . . . Reinforcement . | . . . Assault . | . . . Garrison . | . . . Intercept . | . . . Searches Triggered . | . . . Construction Impeded . | . . . Haulers Reinforced . | . . . Active Scanning Responses . | . . . Cargo Convoy Interrupts . | . . . Stealth | -11 -10 -10 --------- Run | Yrd Mat Sub Distress Signals . | . . . Communications Jammed . | . . . Distress Signals . | . . . Times Spotted 34 | . 21 13 Peak Tracking Total 4 | . 3 4 Tactical Retreats 7 | . 4 3 Traps | -11 -10 -10 ------- Run | Yrd Mat Sub Traps Triggered 5 | . 3 2 Indirectly . | . . . Trap Hack Attempts . | . . . Triggered . | . . . Disarmed . | . . . Reprogrammed . | . . . Reused . | . . . Traps Extracted . | . . . Installed . | . . . Triggered . | . . . Machines | -11 -10 -10 ---------- Run | Yrd Mat Sub Machines Disabled 5 | . . 5 Max in Single Turn 2 | . . 2 Machines Repaired . | . . . Machines Dismantled . | . . . Machines Sabotaged . | . . . Overloaded Fab Kills . | . . . Hacking | -11 -10 -10 --------- Run | Yrd Mat Sub Machines Accessed 10 | . 8 2 Terminals 8 | . 8 . Fabricators . | . . . Repair Stations . | . . . Recycling Units . | . . . Scanalyzers . | . . . Garrison Access . | . . . Total Hacks 26 | . 21 5 Successful 12 | . 7 5 Failed 13 | . 13 . Catastrophic 2 | . 2 . Database Lockouts 1 | . 1 . Manual 18 | . 18 . Terminals 21 | . 21 . Fabricators . | . . . Repair Stations . | . . . Recycling Units . | . . . Scanalyzers . | . . . Garrison Access . | . . . Terminal Hacks 10 | . 5 5 Record 4 | . . 4 Robot Analysis 2 | . 2 . Prototype ID Bank 2 | . 2 . Unreport Threat 1 | . 1 . Proto ID Catalog 1 | . . 1 Fabricator Hacks . | . . . Repair Station Hacks . | . . . Recycling Unit Hacks . | . . . Scanalyzer . | . . . Garrison Access Hacks . | . . . Unauthorized Hacks 2 | . 2 . Terminals 2 | . 2 . Botnet 2 | . 2 . Fabricators . | . . . Repair Stations . | . . . Recycling Units . | . . . Scanalyzers . | . . . Garrison Access . | . . . Data Cores Recovered . | . . . Used . | . . . Hacking Detections 8 | . 8 . Full Trace Events . | . . . Feedback Events . | . . . Feedback Blocked . | . . . Robot Schematics Acquired . | . . . Robots Built . | . . . Authchips . | . . . Time . | . . . Total Robot Build Rating . | . . . Part Schematics Acquired . | . . . Parts Built . | . . . Authchips . | . . . Time . | . . . Total Part Build Rating . | . . . Parts Repaired . | . . . Time . | . . . Parts Recycled . | . . . Recycled Matter . | . . . Retrieved Matter . | . . . Retrieved Components . | . . . Parts Scanalyzed . | . . . Part Schematics Acquired . | . . . Parts Damaged . | . . . Bothacking | -11 -10 -10 ------------ Run | Yrd Mat Sub Used RIF Installer . | . . . Robots Hacked . | . . . Non-combat . | . . . Combat . | . . . Robot Hacks Applied . | . . . Relay Couplers Released . | . . . Fabnet Peak Effective % . | . . . Robots Rewired . | . . . Allies Hacked . | . . . Hacks Repelled . | . . . Allies | -11 -10 -10 -------- Run | Yrd Mat Sub Total Allies . | . . . Largest Group . | . . . Highest-Rated Group . | . . . Highest-Rated Ally . | . . . Total Orders . | . . . Ally Attacks . | . . . Total Damage . | . . . Kills . | . . . Allies Corrupted . | . . . Allies Melted . | . . . Intel | -11 -10 -10 ------- Run | Yrd Mat Sub Active Infowar (turns) 754 | . 378 376 Seismic 754 | . 378 376 Robot Analysis Total 2 | . 2 . Derelict Logs Recovered 1 | . . 1 Drone Launches . | . . . Drone Recoveries . | . . . Exploration | -11 -10 -10 ------------- Run | Yrd Mat Sub Turns Passed 3232 | 156 1303 1773 Spaces Moved 2021 | 79 982 960 Core 9 | 9 . . Treads . | . . . Legs . | . . . Wheels 2012 | 70 982 960 Hover . | . . . Flight . | . . . Fastest Speed 50 | 50 80 110 Average Speed 130 | 86 103 160 Slowest Speed 185 | 150 125 185 Overloaded Moves . | . . . Propulsion Burnouts . | . . . Robots Hopped . | . . . Potential Cave-ins . | . . . Cave-ins Triggered . | . . . Exploration Rate (%) 46 | 5 98 37 Regions Visited 2 Branch Regions 1 Pre-discovered Areas 1 | . . 1 Known Exits Taken . | . . . Unknown Exits Taken 2 | 1 1 . Scrap Searched 1 | . . 1 Spaces Dug . | . . . Terrain Destroyed 91 | . 7 84 Melee . | . . . Projectile . | . . . AOE 91 | . 7 84 Terrain Rammed . | . . . Walls Destroyed . | . . . Machines Disabled . | . . . Actions | -11 -10 -10 --------- Run | Yrd Mat Sub Total 2367 | 122 1134 1111 Wait 94 | . 49 45 Move 2019 | 78 981 960 Hop . | . . . Pick Up 41 | 7 18 16 Fast Attach 10 | 6 2 2 Attach 6 | 2 2 2 Detach . | . . . Swap 22 | . 6 16 Drop 26 | 5 7 14 Fire 122 | 24 69 29 Melee 27 | . . 27 Ram . | . . . Kick . | . . . Crush . | . . . Escape Stasis . | . . . Rewire . | . . . Trap . | . . . Miscellaneous . | . . . Route ------- -11/Scrapyard -10/Materials (discovered 5 exits: [*Mat x3] / [*Min] / *Sub) -10/Subcaves (discovered 2 exits: [*Mat] / [*Rec]) History --------- Turn | Location | Event 7 | -11/Scrapyard | Discovered new exit (range 16) 157 | -11/Scrapyard | Entered Materials 180 | -10/Materials | Central database locked down 245 | -10/Materials | Discovered new exit (range 3) 313 | -10/Materials | Build established: Mutant 411 | -10/Materials | Discovered new exit (range 16) 1144 | -10/Materials | Discovered new exit (range 16) 1387 | -10/Materials | Discovered new exit (range 4) 1400 | -10/Materials | Discovered new exit (range 6) 1460 | -10/Materials | Entered Subcaves 1461 | -10/Subcaves | Approached by a straggling Scientist 1467 | -10/Subcaves | Learned location of Storage (-9) 1717 | -10/Subcaves | Shifting Twisted Machinery released Barrage Gun 2114 | -10/Subcaves | Visited Clippyterm 2120 | -10/Subcaves | Learned Factory garrison access intel 2339 | -10/Subcaves | Core integrity fell below 50% 2350 | -10/Subcaves | Discovered new exit (range 14) 2560 | -10/Subcaves | Discovered new exit (range 6) 2565 | -10/Subcaves | Shifting Twisted Machinery released Sub. Monowheel 2937 | -10/Subcaves | Visited 4L-MR0's lab 2952 | -10/Subcaves | Found Meta Core 3232 | -10/Subcaves | Core integrity fell below 20% 3233 | -10/Subcaves | Destroyed by SJ-YMD(R) with Subdweller Shrapnel Launcher Last Messages --------------- 03162_ Field Recycling Unit collects Scrap Shield Fragment, recycling 3 matter... 03165_ Field Recycling Unit collects Scrap Shield Fragment, recycling 5 matter... 03168_ Field Recycling Unit collects Scrap Shield Fragment, recycling 4 matter... 03169_ Subatomizers dissect the Disposable Heat Sink. 03170_ Field Recycling Unit collects Scrap Shield Fragment, recycling 4 matter... 03171_ Field Recycling Unit collects Scrap Shield Fragment, recycling 5 matter... 03173_ Field Recycling Unit collects Disposable Heat Sink, recycling 2 matter... 03174_ Field Recycling Unit collects Scrap Shield Fragment, recycling 5 matter... 03188_ SJ-YMD(R): "ECOKILL!" 03193_ System corrupted: FCS attempts to trigger Barrage Gun. 03193_ System corrupted: Barrage Gun misfires. Map ----- +----------------------------------------------------+ | ??##" ## #?# "##?? ##????????????? | | ???#" """"" "# ##### "### #????????????? | | ???##"" ""# " # "" #?#"" #?????????????? | | ????##" ## "" " #### #?????????????? | | ????# " ###"""" ##" ##?????????????? | | ????##" "#### #" #??????????????? | | ????# " #### """" ##??????????????? | | ????## ### """"## ### ##???????????????? | | ???## """"##" #####?## ###??????????????? | | """"" """"##"###??????## ##?????????????? | | ""<"" """#####?????????## ##????????????? | | ####""" ## ###??????????????# #????????????? | | #????#########??????????##????# #????????????? | | ????????????????????????# ##??# #????????????? | | ????????????????????????# ##?# #????????????? | | ????????????????????????# ###R #????????????? | | ???????????????????????## # ####????????????? | | ???????????????????????# # ##??????????????? | | ???????????????????????# #??????????????? | | ???????????????????????# #??????????????? | | ???????????????????????# #??????????????? | | ???????????????????????### ##??????????????? | | ??????????????????????##;; ##??????????????? | | ?????????????????????## ; ##?????????????? | | ?????????????????????# ;; ##????????????? | | ??????????????????????#; @ #????????????? | | ?????????????###?????# ; #????????????? | | ??????????#### #????# ;; #????????????? | | ?????????## ????###; ## #????????????? | | ?????????# ##??### ## ##????????????? | | ????????????# ### #?????????????? | | ????????????#???# ## ###?????????????? | | ??????????### ?## #### ##???????????????? | | ???????#### ## ##??###????????????????? | | ?????? #?????????????????????? | | ?????? ##????????????????????? | | ?????? ###??????????????????? | | ?????? #??????????????????? | | ?????? ## #??????????????????? | | ???????#### #?# ### ####??????????????????? | | ??????????## ???## #??##?????????????????????? | | ???????????# ?????# ##?###?????##??????????????? | | ???????????#?????## ##??# ###### #??????????????? | | ???????????????### ##???# ## ##?????????????? | | ??????????????## #????## #?????????????? | | ??????????????# #?????# #?????????????? | | ??????????????## #?##### ###?????????????? | | ???????????????# ###?#"""# #???????????????? | | ???????????????## ##??#"" # #???????????????? | | ????????????????# ##?#"X #???????????????? | +----------------------------------------------------+ Best States ------------- Heat Dissipation 25 Energy Generation 10 Energy Capacity 250 Matter Stores 300 Matter Capacity 300 Sight Range 16 Terrain Scan Density 10 Evasion (%) 44 Recoil Reduction 1 Item Schematics ----------------- None Robot Schematics ------------------ None Fabricated ------------ Nothing Repaired ---------- Nothing Alien Tech Used ----------------- None Achievements -------------- None Challenges ------------ None Game ------ Seed AlphaNavigationParser Manual? 0 Play Time 00:23:04 Cumulative 400.0 hours Start 2025.07.01 @ 06:59:10 End 2025.07.01 @ 07:21:47 Sessions 1 Manual Loads 0 Difficulty Rogue Special Mode None Game No. 443 Rogue 443 Adventurer 0 Explorer 0 Win Type - Total 6 Types 3/1/1/1/0/0/0/0/0/0 Lore% 75 Gallery% 72 Achievement% 69 Wizard Run 0 Options --------- Layout 1 ASCII 0 Keyboard 0 Movement Numpad Keybinds 0 Fullscreen 1 Font 32/SmallcapsGlow Map View 50x35 Zoom Use 0% Tactical HUD 1 Map Filters NONE Filters NONE Steam 1 RUN: 4d78d8c8-e63c-4dc3-9acc-bddb10de9d8a